bitfinex/quotes_BTCUSD_20250313
["timestamp","ask_amount","ask_price","bid_price","bid_amount"]
[1741864390204,0.0923198,83195.0,83194.0,0.0061694]
[1741864390378,0.0923198,83195.0,83194.0,0.0001694]
[1741864390678,0.0923198,83195.0,83194.0,0.0031694]
[1741864392609,0.0923198,83195.0,83194.0,0.0081694]
[1741864393003,0.0923198,83195.0,83194.0,0.0031694]
[1741864393217,0.0923198,83195.0,83194.0,0.0051694]
[1741864394761,0.15450691,83195.0,83194.0,0.0051694]
[1741864394990,0.0923198,83195.0,83194.0,0.0051694]
[1741864397976,0.49757212,83195.0,83194.0,0.0051694]
[1741864398782,0.49757212,83195.0,83194.0,0.0031694]
[1741864400404,0.49757212,83195.0,83194.0,4e-07]
[1741864400638,0.56697985,83188.0,83187.0,4e-08]
[1741864400834,0.7509379,83188.0,83187.0,4e-08]
[1741864401944,0.7519379,83188.0,83187.0,4e-08]
[1741864402102,0.7529379,83188.0,83187.0,4e-08]
[1741864407101,0.73839705,83188.0,83187.0,4e-08]
[1741864407342,0.85835794,83188.0,83187.0,4e-08]
[1741864408148,0.85735794,83188.0,83187.0,4e-08]
[1741864409068,0.85835794,83188.0,83187.0,4e-08]
[1741864410280,0.87289879,83188.0,83187.0,4e-08]
[1741864410596,0.85835794,83188.0,83187.0,4e-08]
[1741864410793,0.48025794,83188.0,83187.0,4e-08]
[1741864410999,0.43385794,83188.0,83187.0,4e-08]
[1741864411597,0.43285794,83188.0,83187.0,4e-08]
[1741864411800,0.43185794,83188.0,83187.0,4e-08]
[1741864411983,0.43285794,83188.0,83187.0,4e-08]
[1741864412182,0.43385794,83188.0,83187.0,4e-08]
[1741864413675,0.52499879,83188.0,83187.0,4e-08]
[1741864413880,0.82499879,83188.0,83187.0,4e-08]
[1741864414910,0.87019879,83188.0,83187.0,4e-08]
[1741864415691,0.87053759,83188.0,83187.0,4e-08]
[1741864418452,0.85599674,83188.0,83187.0,4e-08]
[1741864424313,0.87053759,83188.0,83187.0,4e-08]
[1741864426138,0.240503,83159.0,83158.0,0.07453884]
[1741864426687,0.252518,83163.0,83158.0,0.07453884]
[1741864426882,0.240498,83161.0,83158.0,0.07453884]
[1741864427295,0.240502,83160.0,83158.0,0.08053884]
[1741864427680,0.240502,83160.0,83158.0,0.08653884]
[1741864428001,0.240502,83160.0,83158.0,0.08053884]
[1741864428436,0.240502,83160.0,83158.0,0.08653884]
[1741864428637,0.240502,83160.0,83158.0,0.08053884]
[1741864429064,0.240502,83160.0,83158.0,0.07453884]
[1741864429249,0.240502,83160.0,83158.0,0.08053884]
[1741864429567,0.240502,83160.0,83158.0,0.08653884]
[1741864429788,0.252527,83160.0,83159.0,1.5]
[1741864430580,0.01206537,83161.0,83159.0,1.5]
[1741864431029,0.24054037,83161.0,83159.0,1.5]
[1741864431211,0.24054037,83161.0,83159.0,1.506]
[1741864431551,0.24054037,83161.0,83159.0,1.5]
[1741864431756,0.24054037,83161.0,83159.0,1.506]
[1741864432395,4.137e-05,83161.0,83159.0,1.512]
[1741864432634,0.24054037,83161.0,83159.0,1.506]
[1741864432854,0.24054037,83161.0,83159.0,1.512]
[1741864433545,4.137e-05,83161.0,83159.0,1.512]
[1741864434372,0.012025,83160.0,83159.0,1.512]
[1741864435336,0.012025,83160.0,83159.0,1.506]
[1741864435589,0.012025,83160.0,83159.0,1.512]
[1741864435802,0.012025,83160.0,83159.0,1.506]
[1741864436023,0.012025,83160.0,83159.0,1.512]
[1741864436512,0.012025,83160.0,83159.0,1.506]
[1741864436699,0.012025,83160.0,83159.0,1.511]
[1741864437712,0.012025,83160.0,83159.0,1.505]
[1741864438256,0.012025,83160.0,83159.0,1.511]
[1741864438826,0.24054037,83161.0,83159.0,1.511]
[1741864439252,4.137e-05,83161.0,83159.0,1.511]
[1741864440071,0.24054037,83161.0,83159.0,1.506]
[1741864440298,4.137e-05,83161.0,83159.0,1.511]
[1741864440919,4.137e-05,83161.0,83159.0,1.505]
[1741864441332,0.00038017,83161.0,83159.0,1.51]
[1741864441568,0.012025,83160.0,83159.0,1.51]
[1741864441803,0.012025,83160.0,83159.0,0.01]
[1741864442034,0.24087917,83161.0,83160.0,0.252525]
[1741864442035,0.00038017,83161.0,83160.0,0.252525]
[1741864444095,0.00038017,83161.0,83160.0,0.257525]
[1741864444312,0.00038017,83161.0,83160.0,0.339025]
[1741864444544,0.00038017,83161.0,83160.0,0.45872599]
[1741864444775,0.00038017,83161.0,83160.0,0.46372599]
[1741864445877,0.00038017,83161.0,83160.0,1.96372599]
[1741864449580,0.00038017,83161.0,83160.0,1.762525]
[1741864450046,0.01240417,83161.0,83160.0,0.01]
[1741864450526,0.06414749,83161.0,83160.0,0.01]
[1741864451451,0.01240417,83161.0,83160.0,0.01]
[1741864453556,0.01240417,83161.0,83160.0,0.005]
[1741864453787,0.012025,83159.0,83158.0,0.0001694]
[1741864455501,0.2405,83160.0,83158.0,0.0001694]
[1741864455734,0.252525,83160.0,83158.0,0.0051694]
[1741864456124,0.252525,83160.0,83159.0,1.5]
[1741864456318,0.00038017,83161.0,83160.0,0.012025]
[1741864456533,0.00038017,83161.0,83160.0,0.252525]
[1741864457117,0.00038017,83161.0,83160.0,1.752525]
[1741864457342,0.00038017,83161.0,83160.0,1.5]
[1741864458749,0.00038017,83161.0,83160.0,1.505]
[1741864459647,0.00038017,83161.0,83160.0,0.009]
[1741864460098,0.01240417,83161.0,83160.0,0.009]
[1741864466962,0.06150417,83161.0,83160.0,0.009]
[1741864467973,0.06150417,83161.0,83160.0,0.004]
[1741864468376,0.06150417,83161.0,83160.0,0.007]
[1741864468577,0.07362089,83161.0,83160.0,0.007]
[1741864468811,0.51443039,83161.0,83160.0,0.007]
[1741864468979,0.63439128,83161.0,83160.0,1e-06]
[1741864469390,0.64893213,83161.0,83160.0,1e-06]
[1741864469577,0.56706585,83160.0,83159.0,0.0001694]
[1741864469770,0.62854765,83160.0,83159.0,0.0001694]
[1741864470202,0.552573,83144.0,83143.0,4e-07]
[1741864470457,0.7578527,83144.0,83143.0,4e-07]
[1741864470635,0.74331185,83144.0,83143.0,4e-07]
[1741864471588,0.74331185,83144.0,83143.0,0.0010004]
[1741864472194,0.7578527,83144.0,83143.0,4e-07]
[1741864472428,0.8658502,83144.0,83143.0,4e-07]
[1741864473083,0.8658502,83144.0,83143.0,0.0010004]
[1741864473292,0.8658502,83144.0,83143.0,4e-07]
[1741864473694,0.2526,83135.0,83119.0,0.10762419]
[1741864473903,0.31588988,83135.0,83119.0,0.10762419]
[1741864474119,0.39799767,83135.0,83119.0,0.10762419]
[1741864474329,0.012028,83134.0,83133.0,0.0047178]
[1741864474909,0.01215204,83134.0,83133.0,0.0047178]
[1741864475536,0.03100128,83134.0,83133.0,0.0047178]
[1741864476816,0.03100128,83134.0,83133.0,0.0067178]
[1741864477037,0.12054104,83134.0,83133.0,0.0067178]
[1741864477237,0.12054104,83134.0,83133.0,0.0047178]
[1741864477439,0.12054104,83134.0,83133.0,0.0067178]
[1741864477642,0.10867751,83134.0,83133.0,0.0067178]
[1741864477981,0.10867751,83134.0,83133.0,0.0047178]
[1741864483806,0.10867751,83134.0,83133.0,0.2452958]
[1741864483807,0.01897328,83134.0,83133.0,0.2452958]
[1741864484027,0.03100128,83134.0,83133.0,0.0047178]
[1741864484251,0.01215204,83134.0,83133.0,0.0047178]
[1741864485556,0.00012404,83134.0,83133.0,0.0047178]
[1741864486621,0.01215204,83134.0,83133.0,0.0047178]
[1741864486820,0.01215204,83134.0,83133.0,0.0057178]
[1741864487221,0.01215204,83134.0,83133.0,0.0047178]
[1741864487404,0.01215204,83134.0,83133.0,0.0057178]
[1741864487607,0.08514147,83134.0,83133.0,0.0077178]
[1741864487863,0.08514147,83134.0,83133.0,0.0067178]
[1741864488071,0.03100047,83134.0,83133.0,0.0067178]
[1741864488267,0.03100047,83134.0,83133.0,0.0087178]
[1741864488478,0.03100047,83134.0,83133.0,0.0088872]
[1741864491356,0.03100047,83134.0,83133.0,0.0209152]
[1741864491357,0.01897247,83134.0,83133.0,0.0209152]
[1741864491566,0.03100047,83134.0,83133.0,0.0838872]
[1741864491794,0.03100047,83134.0,83133.0,0.0088872]
[1741864495835,0.01897247,83134.0,83133.0,0.0693152]
[1741864496860,0.01897247,83134.0,83133.0,0.0088872]
[1741864497075,0.27157547,83134.0,83133.0,0.0088872]
[1741864497293,0.25954747,83134.0,83133.0,0.0088872]
[1741864498125,0.27157547,83134.0,83133.0,0.0088872]
[1741864498332,0.25272704,83134.0,83133.0,0.0088872]
[1741864500059,0.25306584,83134.0,83133.0,0.0088872]
[1741864500326,0.24103784,83134.0,83133.0,0.0088872]
[1741864500660,0.25306584,83134.0,83133.0,0.0088872]
[1741864501075,0.3420357,83134.0,83133.0,0.0088872]
[1741864501459,0.26500762,83134.0,83133.0,0.0088872]
[1741864501865,0.25306584,83134.0,83133.0,0.0088872]
[1741864502071,0.27191347,83134.0,83133.0,0.0088872]
[1741864506534,0.27191347,83134.0,83133.0,0.0068872]
[1741864506893,0.27191347,83134.0,83133.0,0.0078872]
[1741864507100,0.25988547,83134.0,83133.0,0.0058872]
[1741864507280,0.27191347,83134.0,83133.0,0.0068872]
[1741864507694,0.25988547,83134.0,83133.0,0.0068872]
[1741864507891,0.03133847,83134.0,83133.0,0.0068872]
[1741864508515,0.01931047,83134.0,83133.0,0.0068872]
[1741864508999,0.01931047,83134.0,83133.0,0.0189152]
[1741864509739,0.01931047,83134.0,83133.0,0.0068872]
[1741864509947,0.13961047,83134.0,83133.0,0.0068872]
[1741864510150,0.15163847,83134.0,83133.0,0.0068872]
[1741864512435,0.13961047,83134.0,83133.0,0.0068872]
[1741864514958,0.15163847,83134.0,83133.0,0.0068872]
[1741864519707,0.13961047,83134.0,83133.0,0.0068872]
[1741864519900,0.13961047,83134.0,83133.0,0.0189152]
[1741864520592,0.13961047,83134.0,83133.0,0.0068872]
[1741864521406,0.15163847,83134.0,83133.0,0.0068872]
[1741864522944,0.25028122,83134.0,83133.0,0.0068872]
[1741864523167,0.15163847,83134.0,83133.0,0.0068872]
[1741864528080,0.13961047,83134.0,83133.0,0.0068872]
[1741864528709,0.15163847,83134.0,83133.0,0.0068872]
[1741864532120,0.16095214,83134.0,83133.0,0.0068872]
[1741864532533,0.29961437,83134.0,83133.0,0.0068872]
[1741864532737,0.73401028,83134.0,83133.0,0.0068872]
[1741864533612,0.74518667,83134.0,83133.0,0.0068872]
[1741864533740,0.74518667,83134.0,83133.0,0.0058872]
[1741864534163,0.74818667,83134.0,83133.0,0.0048872]
[1741864534574,0.74718667,83134.0,83133.0,0.0048872]
[1741864534990,0.75018667,83134.0,83133.0,0.0048872]
[1741864535198,0.77252145,83134.0,83133.0,0.0048872]
[1741864538731,0.7870623,83134.0,83133.0,0.0048872]
[1741864539770,0.8059115,83134.0,83133.0,0.0048872]
[1741864540188,0.79137065,83134.0,83133.0,0.0048872]
[1741864540819,0.78637065,83134.0,83133.0,0.0048872]
[1741864541241,0.79037065,83134.0,83133.0,0.0048872]
[1741864541446,0.79337065,83134.0,83133.0,0.0048872]
[1741864544255,0.77103587,83134.0,83133.0,0.0048872]
[1741864546115,0.4791301,83134.0,83133.0,0.0048872]
[1741864546541,0.1602809,83134.0,83133.0,0.0048872]
[1741864546952,0.1482529,83134.0,83133.0,0.0169152]
[1741864547377,0.1482529,83134.0,83133.0,0.0919152]
[1741864547587,0.1602809,83134.0,83133.0,0.0798872]
[1741864547800,0.1602809,83134.0,83133.0,0.0048872]
[1741864547801,0.1562809,83134.0,83133.0,0.0048872]
[1741864548223,0.1542809,83134.0,83133.0,0.0048872]
[1741864548689,0.14310451,83134.0,83133.0,0.0048872]
[1741864548899,0.14210451,83134.0,83133.0,0.0048872]
[1741864549309,0.14210451,83134.0,83133.0,0.0058872]
[1741864549481,0.14210451,83134.0,83133.0,0.0068872]
[1741864549936,0.16095277,83134.0,83133.0,0.0068872]
[1741864552857,0.224315,83134.0,83133.0,0.0068872]
[1741864553068,0.3700289,83134.0,83133.0,0.0068872]
[1741864553268,0.35118064,83134.0,83133.0,0.0068872]
[1741864553834,0.35118064,83134.0,83133.0,0.0058872]
[1741864554431,0.35118064,83134.0,83133.0,0.0048872]
[1741864554662,0.25176674,83134.0,83133.0,0.0048872]
[1741864554839,0.14210451,83134.0,83133.0,0.0048872]
[1741864555089,0.14310451,83134.0,83133.0,0.0048872]
[1741864555496,0.14410451,83134.0,83133.0,0.0048872]
[1741864555676,0.14210451,83134.0,83133.0,0.0048872]
[1741864556185,0.14310451,83134.0,83133.0,0.0048872]
[1741864556567,0.25324628,83134.0,83133.0,0.0048872]
[1741864557178,0.16295343,83134.0,83133.0,0.0048872]
[1741864557554,0.16195343,83134.0,83133.0,0.0048872]
[1741864561119,0.14992543,83134.0,83133.0,0.0048872]
[1741864561347,0.16195343,83134.0,83133.0,0.0048872]
[1741864562164,0.16095343,83134.0,83133.0,0.0048872]
[1741864562343,0.16095343,83134.0,83133.0,0.0068872]
[1741864562753,0.16095343,83134.0,83133.0,0.0048872]
[1741864563721,0.16095343,83134.0,83133.0,0.0068872]
[1741864564176,0.16095343,83134.0,83133.0,0.0048872]
[1741864564550,0.16095343,83134.0,83133.0,0.0058872]
[1741864565573,0.16095343,83134.0,83133.0,0.0068872]
[1741864565806,0.3904877,83134.0,83133.0,0.0068872]
[1741864566935,0.3904877,83134.0,83133.0,0.0058872]
[1741864567144,0.3934877,83134.0,83133.0,0.0058872]
[1741864567376,0.37463878,83134.0,83133.0,0.0058872]
[1741864567579,0.29913878,83134.0,83133.0,0.0058872]
[1741864567770,0.29613878,83134.0,83133.0,0.0048872]
[1741864568070,0.29813878,83134.0,83133.0,0.0048872]
[1741864568429,0.29713878,83134.0,83133.0,0.0048872]
[1741864569076,0.29613878,83134.0,83133.0,0.0048872]
[1741864570497,0.31498762,83134.0,83133.0,0.0048872]
[1741864571474,0.22431558,83134.0,83133.0,0.0048872]
[1741864572477,0.16095335,83134.0,83133.0,0.0048872]
[1741864574122,0.22431558,83134.0,83133.0,0.0048872]
[1741864575237,0.30141558,83134.0,83133.0,0.0048872]
[1741864577594,0.30341558,83134.0,83133.0,0.0048872]
[1741864577898,0.40833384,83134.0,83133.0,0.0048872]
[1741864578101,0.41033384,83134.0,83133.0,0.0048872]
[1741864580080,0.77407469,83134.0,83133.0,0.0048872]
[1741864580283,0.75522585,83134.0,83133.0,0.0048872]
[1741864580689,0.55866674,83134.0,83133.0,0.0048872]
[1741864581978,0.50946674,83134.0,83133.0,0.0048872]
[1741864583452,0.50746674,83134.0,83133.0,0.0048872]
[1741864583859,0.50846674,83134.0,83133.0,0.0048872]
[1741864584290,0.50646674,83134.0,83133.0,0.0048872]
[1741864584492,0.62742763,83134.0,83133.0,0.0048872]
[1741864586283,0.50746674,83134.0,83133.0,0.0048872]
[1741864586687,0.526316,83134.0,83133.0,0.0048872]
[1741864590057,0.012031,83112.0,83111.0,0.0008]
[1741864590938,0.27152045,83112.0,83111.0,0.0008]
[1741864591310,0.27152045,83112.0,83111.0,0.0058]
[1741864591507,0.01885045,83112.0,83111.0,0.0058]
[1741864591732,0.01885045,83112.0,83111.0,0.0088]
[1741864591939,0.05240439,83112.0,83111.0,0.0088]
[1741864592775,0.06443539,83112.0,83111.0,0.0088]
[1741864593106,0.06443539,83112.0,83111.0,0.0089694]
[1741864594166,0.06534202,83112.0,83111.0,0.0089694]
[1741864594356,0.10111319,83112.0,83111.0,0.0089694]
[1741864595198,0.06534202,83112.0,83111.0,0.0089694]
[1741864600648,0.05331102,83112.0,83111.0,0.0089694]
[1741864601029,0.05331102,83112.0,83111.0,0.0210014]
[1741864601226,0.05240439,83112.0,83111.0,0.2616434]
[1741864601422,0.05240439,83112.0,83111.0,0.0089694]
[1741864601967,0.75240439,83112.0,83111.0,0.0089694]
[1741864602178,0.76135777,83112.0,83111.0,0.0089694]
[1741864602377,0.77338877,83112.0,83111.0,0.0089694]
[1741864603854,0.80919075,83112.0,83111.0,0.0089694]
[1741864604688,1.07390591,83112.0,83111.0,0.0089694]
[1741864604890,1.10035546,83112.0,83111.0,0.0089694]
[1741864605460,1.10035546,83112.0,83111.0,0.0059694]
[1741864605674,1.10035546,83112.0,83111.0,0.003]
[1741864606069,0.012033,83104.0,83089.0,0.00185644]
[1741864606270,0.02400057,83104.0,83089.0,0.00185644]
[1741864606472,0.27364638,83104.0,83089.0,0.00185644]
[1741864606825,0.38565207,83104.0,83089.0,0.00185644]
[1741864607006,0.52758548,83104.0,83089.0,0.00185644]
[1741864607200,0.52770945,83104.0,83089.0,0.00185644]
[1741864607757,0.45130945,83104.0,83090.0,0.252737]
[1741864607961,0.47016564,83104.0,83091.0,0.092434]
[1741864608166,0.47016564,83104.0,83103.0,0.0061695]
[1741864608582,0.42751587,83104.0,83103.0,0.0061695]
[1741864611019,0.39171389,83104.0,83103.0,0.0061695]
[1741864613653,0.47051389,83104.0,83103.0,0.0061695]
[1741864614978,0.39171389,83104.0,83103.0,0.0061695]
[1741864620217,0.04266172,83104.0,83103.0,0.0061695]
[1741864620408,0.04266172,83104.0,83103.0,0.1006025]
[1741864620614,0.03367791,83104.0,83103.0,0.1006025]
[1741864621017,0.03367791,83104.0,83103.0,0.0885695]
[1741864621312,0.29523787,83104.0,83103.0,0.0061695]
[1741864622342,0.04254287,83104.0,83103.0,0.0182025]
[1741864622520,0.04254287,83104.0,83103.0,0.0840695]
[1741864622687,0.05457587,83104.0,83103.0,0.0061695]
[1741864622885,0.13173043,83104.0,83103.0,0.0061695]
[1741864623087,0.09028365,83104.0,83103.0,0.0061695]
[1741864623906,0.07825065,83104.0,83103.0,0.0061695]
[1741864624120,0.09028365,83104.0,83103.0,0.0061695]
[1741864627252,0.10913889,83104.0,83103.0,0.0061695]
[1741864628857,0.09710589,83104.0,83103.0,0.0061695]
[1741864629201,0.10913889,83104.0,83103.0,0.0061695]
[1741864630522,0.19585898,83104.0,83103.0,0.0061695]
[1741864630730,0.12701178,83104.0,83103.0,0.0061695]
[1741864631739,0.19254519,83104.0,83103.0,0.0061695]
[1741864632170,0.012035,83090.0,83089.0,0.00185644]
[1741864632523,0.25358536,83090.0,83089.0,0.00185644]
[1741864632924,0.27244159,83090.0,83089.0,0.00185644]
[1741864633301,0.27344159,83090.0,83089.0,0.00285644]
[1741864633867,0.33251614,83090.0,83089.0,0.00585644]
[1741864634139,0.34370331,83090.0,83089.0,0.00585644]
[1741864634598,0.09893205,83090.0,83089.0,0.00585644]
[1741864635534,0.33963605,83090.0,83085.0,0.25179144]
[1741864635781,0.32077982,83090.0,83085.0,0.25179144]
[1741864636016,0.240707,83089.0,83085.0,0.01107644]
[1741864636456,0.240711,83087.0,83082.0,0.012036]
[1741864636685,0.240715,83086.0,83082.0,0.012036]
[1741864637310,0.25275,83086.0,83081.0,0.240727]
[1741864637446,0.05807455,83085.0,83081.0,0.240727]
[1741864637656,0.05807455,83085.0,83083.0,0.240722]
[1741864637851,0.05807455,83085.0,83082.0,0.240723]
[1741864638059,0.05807455,83085.0,83083.0,0.24072]
[1741864638609,0.05807455,83084.0,83083.0,0.24072]
[1741864638839,0.05807455,83084.0,83080.0,0.14]
[1741864639053,0.06926172,83084.0,83080.0,0.14]
[1741864639458,0.06926172,83084.0,83081.0,0.240728]
[1741864639667,0.06926172,83084.0,83082.0,0.240723]
[1741864639882,0.05890252,83083.0,83081.0,0.012036]
[1741864640095,0.05890252,83083.0,83080.0,0.14]
[1741864640645,0.05807455,83082.0,83080.0,0.14]
[1741864641067,0.00082215,83081.0,83080.0,0.14]
[1741864641249,0.01285815,83081.0,83080.0,0.14]
[1741864641910,0.0709327,83081.0,83080.0,0.14]
[1741864642114,0.08211987,83081.0,83080.0,0.14]
[1741864643077,0.07008387,83081.0,83080.0,0.1401694]
[1741864643483,0.07108387,83081.0,83080.0,0.1401694]
[1741864644234,0.08411987,83081.0,83080.0,0.1401694]
[1741864645841,0.16835936,83081.0,83080.0,0.1401694]
[1741864645972,0.08411987,83081.0,83080.0,0.1401694]
[1741864646613,0.07208387,83081.0,83080.0,0.1401694]
[1741864646910,0.07208387,83081.0,83080.0,0.1522054]
[1741864647317,0.07208387,83081.0,83080.0,0.2280054]
[1741864647556,0.07126172,83081.0,83080.0,0.2280054]
[1741864648617,0.07126172,83081.0,83080.0,0.39450639]
[1741864648992,0.07126172,83081.0,83080.0,1.89450639]
[1741864649191,0.03555394,83081.0,83080.0,1.89450639]
[1741864649419,0.02436677,83081.0,83080.0,2.19450639]
[1741864650545,0.002,83081.0,83080.0,2.19450639]
[1741864652910,0.002,83081.0,83080.0,2.0748054]
[1741864653111,0.002,83081.0,83080.0,0.4272454]
[1741864653562,0.02434622,83081.0,83080.0,0.4272454]
[1741864653806,0.02434622,83081.0,83080.0,0.54694639]
[1741864653952,0.03551919,83081.0,83080.0,0.84694639]
[1741864655253,0.02434622,83081.0,83080.0,0.84694639]
[1741864655457,0.002,83081.0,83080.0,0.84694639]
[1741864656072,0.002,83081.0,83080.0,0.69450639]
[1741864656281,0.002,83081.0,83080.0,0.84694639]
[1741864656484,0.002,83081.0,83080.0,2.34694639]
[1741864658515,0.0003388,83108.0,83103.0,0.012033]
[1741864658739,0.0003388,83108.0,83103.0,0.65033899]
[1741864659555,0.0003388,83108.0,83103.0,0.95033899]
[1741864659879,0.0003388,83108.0,83103.0,2.45033899]
[1741864660154,9.7e-07,83104.0,83103.0,2.45033899]
[1741864660360,9.7e-07,83104.0,83103.0,2.45333899]
[1741864660953,9.7e-07,83104.0,83103.0,2.473916]
[1741864661150,0.00100097,83104.0,83103.0,2.476916]
[1741864661350,0.00100097,83104.0,83103.0,2.50087117]
[1741864661575,0.00100097,83104.0,83103.0,2.49787117]
[1741864661983,0.00200097,83104.0,83103.0,2.50187117]
[1741864662201,0.00200097,83104.0,83103.0,2.37637117]
[1741864662359,0.00200097,83104.0,83103.0,0.87637117]
[1741864662718,0.00200097,83104.0,83103.0,0.57637117]
[1741864662831,0.25469597,83104.0,83103.0,0.15944]
[1741864663238,0.26105942,83104.0,83103.0,0.004]
[1741864663803,0.26105942,83104.0,83103.0,0.007]
[1741864664005,0.31907289,83104.0,83103.0,0.007]
[1741864664205,0.31907289,83104.0,83103.0,0.004]
[1741864664430,0.252701,83102.0,83101.0,0.76412]
[1741864664767,0.25910797,83102.0,83101.0,0.76412]
[1741864665220,0.31712144,83102.0,83101.0,0.76412]
[1741864665625,0.32827792,83102.0,83101.0,0.76412]
[1741864665871,0.32827792,83102.0,83101.0,0.76712]
[1741864666833,0.32921958,83102.0,83101.0,0.77012]
[1741864667193,0.29351898,83102.0,83101.0,0.77012]
[1741864667656,0.29351898,83102.0,83101.0,0.006]
[1741864669186,0.33646829,83102.0,83101.0,0.006]
[1741864669389,0.33680709,83102.0,83101.0,0.006]
[1741864669618,0.29385778,83102.0,83101.0,0.006]
[1741864670400,0.252728,83094.0,83088.0,0.240705]
[1741864670602,0.252728,83094.0,83088.0,0.25274]
[1741864670805,0.240688,83096.0,83090.0,0.252737]
[1741864670806,0.00091546,83093.0,83090.0,0.252737]
[1741864671005,0.02231287,83093.0,83091.0,0.240698]
[1741864671214,0.04116913,83093.0,83092.0,0.012034]
[1741864671416,0.04116913,83093.0,83091.0,0.240698]
[1741864671718,0.04116913,83093.0,83092.0,0.012034]
[1741864672341,0.04116913,83093.0,83089.0,0.240704]
[1741864672498,0.2407,83091.0,83087.0,0.27728512]
[1741864673317,0.24071,83088.0,83081.0,0.76404]
[1741864673515,0.240714,83086.0,83081.0,0.76404]
[1741864673714,0.240714,83086.0,83081.0,0.776076]
[1741864674414,0.00087028,83085.0,83083.0,0.012036]
[1741864674614,0.05891278,83085.0,83084.0,0.252755]
[1741864675230,0.05891278,83085.0,83082.0,0.252759]
[1741864675547,0.0580425,83085.0,83082.0,0.252759]
[1741864675728,0.05890987,83084.0,83083.0,0.006]
[1741864676136,0.0580425,83084.0,83083.0,0.006]
[1741864676836,0.06529843,83084.0,83083.0,0.006]
[1741864677034,0.0580425,83084.0,83083.0,0.003]
[1741864677382,0.07646242,83084.0,83082.0,0.1524]
[1741864677589,0.30992649,83084.0,83082.0,0.1554]
[1741864677739,0.00725226,83083.0,83082.0,0.1554]
[1741864677939,0.30992649,83084.0,83082.0,0.1554]
[1741864678144,0.3287836,83084.0,83082.0,0.1554]
[1741864678353,0.0183751,83083.0,83082.0,0.1554]
[1741864678578,0.06920649,83083.0,83082.0,0.1524]
[1741864678736,0.06920649,83083.0,83082.0,0.393126]
[1741864679137,0.06920649,83083.0,83082.0,0.1524]
[1741864679343,0.06920649,83083.0,83081.0,2.516802]
[1741864679545,0.06920649,83083.0,83081.0,2.26404]
[1741864679775,0.02231287,83082.0,83081.0,2.26404]
[1741864680468,0.02231287,83082.0,83081.0,2.276076]
[1741864681340,0.03347686,83082.0,83081.0,2.276076]
[1741864681548,0.03447686,83082.0,83081.0,1.515036]
[1741864681938,0.03547686,83082.0,83081.0,1.758764]
[1741864683693,0.01316399,83082.0,83081.0,1.758764]
[1741864684121,0.002,83082.0,83081.0,1.758764]
[1741864692785,0.002,83082.0,83081.0,0.258764]
[1741864692990,0.0243744,83082.0,83081.0,0.258764]
[1741864693369,0.0243744,83082.0,83081.0,0.2589334]
[1741864696023,0.0243744,83082.0,83081.0,1.87863439]
[1741864696290,0.0243744,83082.0,83081.0,1.92453439]
[1741864696495,0.00033977,83104.0,83101.0,0.252703]
[1741864696836,0.00762686,83102.0,83101.0,0.252703]
[1741864697035,0.0003388,83102.0,83101.0,0.252703]
[1741864697396,0.00762686,83102.0,83101.0,0.252703]
[1741864697800,0.0003388,83102.0,83101.0,0.252703]
[1741864698100,0.0003388,83102.0,83099.0,0.240674]
[1741864698334,0.0003388,83102.0,83099.0,0.252707]
[1741864698537,0.240679,83098.0,83096.0,0.15236]
[1741864698740,0.0072844,83101.0,83096.0,0.15236]
[1741864698741,0.240679,83099.0,83096.0,0.15236]
[1741864698918,0.252709,83100.0,83096.0,0.15236]
[1741864699326,0.0072844,83101.0,83095.0,0.25272]
[1741864699536,0.0072844,83101.0,83096.0,0.240683]
[1741864699751,0.0072844,83101.0,83096.0,0.252717]
[1741864700127,0.2479564,83101.0,83096.0,0.252717]
[1741864700329,0.01885463,83100.0,83096.0,0.252717]
[1741864700735,0.01976859,83100.0,83096.0,0.254717]
[1741864700944,0.01976859,83100.0,83096.0,0.255717]
[1741864701107,0.01976859,83100.0,83096.0,0.013034]
[1741864701307,0.01976859,83100.0,83096.0,0.014034]
[1741864701531,0.01976859,83100.0,83096.0,0.253717]
[1741864701739,0.01976859,83100.0,83099.0,0.012033]
[1741864701946,0.01885463,83100.0,83099.0,0.012033]
[1741864702340,0.0252412,83100.0,83097.0,0.012034]
[1741864702516,0.0252412,83100.0,83098.0,0.25271]
[1741864702949,0.0252412,83100.0,83099.0,0.012033]
[1741864703293,0.0252412,83100.0,83099.0,0.02417993]
[1741864703605,0.01885463,83100.0,83099.0,0.012033]
[1741864703812,0.0252428,83100.0,83098.0,0.25271]
[1741864704065,0.0252428,83100.0,83099.0,0.001]
[1741864704266,0.0252428,83100.0,83099.0,0.0160673]
[1741864704500,0.0252428,83100.0,83099.0,0.01379066]
[1741864705065,0.0252428,83100.0,83099.0,0.01279066]
[1741864705231,0.0252428,83100.0,83099.0,0.02482366]
[1741864705432,0.0364333,83100.0,83099.0,0.02482366]
[1741864705906,0.0367721,83100.0,83099.0,0.02482366]
[1741864706750,0.0367721,83100.0,83099.0,0.001]
[1741864706953,0.0488051,83100.0,83099.0,0.001]
[1741864707187,0.0488051,83100.0,83099.0,0.002]
[1741864707708,0.0367721,83100.0,83099.0,0.002]
[1741864708439,0.07705047,83100.0,83099.0,0.002]
[1741864708613,0.28558489,83100.0,83099.0,0.002]
[1741864708838,0.29784766,83100.0,83099.0,0.002]
[1741864709017,0.32021564,83100.0,83099.0,0.002]
[1741864709799,0.32021564,83100.0,83099.0,0.001]
[1741864710002,0.32021564,83100.0,83081.0,0.0001694]
[1741864710003,0.335262,83082.0,83081.0,0.0001694]
[1741864710232,0.384562,83082.0,83081.0,0.0001694]
[1741864711028,0.39090364,83082.0,83081.0,0.0001694]
[1741864711389,0.40209414,83082.0,83081.0,0.0001694]
[1741864711564,0.42095305,83082.0,83081.0,0.0041694]
[1741864711768,0.47909767,83082.0,83081.0,0.0081694]
[1741864713107,0.59905856,83082.0,83081.0,0.0081694]
[1741864713354,0.54622427,83082.0,83081.0,0.0081694]
[1741864713484,0.52736536,83082.0,83081.0,0.0081694]
[1741864714435,0.52736536,83082.0,83081.0,0.0001694]
[1741864714820,0.49158872,83082.0,83081.0,0.0001694]
[1741864715490,0.50376709,83082.0,83081.0,0.0001694]
[1741864715794,0.53788746,83082.0,83081.0,0.0001694]
[1741864716625,0.55674799,83082.0,83081.0,0.0001694]
[1741864718095,0.57128884,83082.0,83081.0,0.0001694]
[1741864718540,0.60697266,83082.0,83081.0,0.0001694]
[1741864719286,0.60731146,83082.0,83081.0,0.0001694]
[1741864720079,0.60931146,83082.0,83081.0,0.0001694]
[1741864720252,0.61031146,83082.0,83081.0,0.0001694]